[Event "Early-Titled-Tuesday-Blitz-January-30-2024"]
[Site "Chess.com"]
[Date "2024.01.30"]
[Round "9"]
[White "Mops_2004"]
[Black "Let_it_be_1"]
[Result "1-0"]
[WhiteElo "2763"]
[BlackElo "2583"]
[TimeControl "180+1"]
[EndTime "9:49:05 PST"]
[Termination "Mops_2004 won by checkmate"]

1. f4 {[%clk 0:03:00.9]} 1... d5 {[%clk 0:02:59.7]} 2. Nf3 {[%clk 0:03:00.9]}
2... Nf6 {[%clk 0:02:59.8]} 3. g3 {[%clk 0:03:01.2]} 3... g6 {[%clk 0:03:00]} 4.
Bg2 {[%clk 0:03:01.5]} 4... Bg7 {[%clk 0:03:00.6]} 5. O-O {[%clk 0:03:02.2]}
5... O-O {[%clk 0:03:00.9]} 6. d3 {[%clk 0:03:02.8]} 6... b6 {[%clk 0:03:00.6]}
7. a4 {[%clk 0:03:01.4]} 7... a5 {[%clk 0:02:58.5]} 8. Qe1 {[%clk 0:02:49.1]}
8... Bb7 {[%clk 0:02:57.6]} 9. Nc3 {[%clk 0:02:42.7]} 9... Nbd7 {[%clk
0:02:55.9]} 10. e4 {[%clk 0:02:40.2]} 10... dxe4 {[%clk 0:02:54.6]} 11. dxe4
{[%clk 0:02:40.5]} 11... Nc5 {[%clk 0:02:54.5]} 12. e5 {[%clk 0:02:38.5]} 12...
Nfe4 {[%clk 0:02:49.4]} 13. Nxe4 {[%clk 0:02:33.8]} 13... Bxe4 {[%clk
0:02:45.3]} 14. Qf2 {[%clk 0:02:27.4]} 14... f6 {[%clk 0:02:36.3]} 15. Be3
{[%clk 0:01:35.4]} 15... fxe5 {[%clk 0:02:23.4]} 16. Rad1 {[%clk 0:01:27.4]}
16... Qc8 {[%clk 0:02:22]} 17. Bxc5 {[%clk 0:01:24.2]} 17... bxc5 {[%clk
0:02:22.1]} 18. Qxc5 {[%clk 0:01:23.5]} 18... Qb7 {[%clk 0:02:12.5]} 19. Rd7
{[%clk 0:00:37.2]} 19... Bc6 {[%clk 0:01:46.8]} 20. Nxe5 {[%clk 0:00:33.5]}
20... Bxg2 {[%clk 0:01:39.8]} 21. Qxe7 {[%clk 0:00:33.5]} 21... Qb6+ {[%clk
0:01:26.1]} 22. Kxg2 {[%clk 0:00:33.4]} 22... Qf6 {[%clk 0:01:26.2]} 23. Qxf6
{[%clk 0:00:32.8]} 23... Bxf6 {[%clk 0:01:23.6]} 24. Rxc7 {[%clk 0:00:32.8]}
24... Rfd8 {[%clk 0:01:20]} 25. Nd3 {[%clk 0:00:28]} 25... Re8 {[%clk
0:01:11.3]} 26. b3 {[%clk 0:00:17.3]} 26... Bd4 {[%clk 0:01:08.3]} 27. Ne5
{[%clk 0:00:13.9]} 27... Rad8 {[%clk 0:00:56.8]} 28. Rd1 {[%clk 0:00:11.9]}
28... Bb2 {[%clk 0:00:49.6]} 29. Rxd8 {[%clk 0:00:11.1]} 29... Rxd8 {[%clk
0:00:49.8]} 30. Nd3 {[%clk 0:00:11.6]} 30... Bd4 {[%clk 0:00:48.5]} 31. Rc4
{[%clk 0:00:10.5]} 31... Bb6 {[%clk 0:00:47.5]} 32. Kf3 {[%clk 0:00:10.7]} 32...
Re8 {[%clk 0:00:47]} 33. Ne5 {[%clk 0:00:11.1]} 33... Bg1 {[%clk 0:00:42.2]} 34.
h3 {[%clk 0:00:10.8]} 34... g5 {[%clk 0:00:42.2]} 35. Kg4 {[%clk 0:00:07.4]}
35... gxf4 {[%clk 0:00:41.8]} 36. gxf4 {[%clk 0:00:08.3]} 36... Kg7 {[%clk
0:00:38.6]} 37. Kf5 {[%clk 0:00:08.5]} 37... Rf8+ {[%clk 0:00:37.8]} 38. Ke6
{[%clk 0:00:08.3]} 38... Rf6+ {[%clk 0:00:36.9]} 39. Kd5 {[%clk 0:00:08.4]}
39... Rh6 {[%clk 0:00:32.4]} 40. Rc7+ {[%clk 0:00:08.3]} 40... Kg8 {[%clk
0:00:32.5]} 41. f5 {[%clk 0:00:06.8]} 41... Bh2 {[%clk 0:00:27.6]} 42. Rc8+
{[%clk 0:00:05.7]} 42... Kg7 {[%clk 0:00:27.8]} 43. Ng4 {[%clk 0:00:05.9]} 43...
Rxh3 {[%clk 0:00:27.5]} 44. f6+ {[%clk 0:00:05.6]} 44... Kf7 {[%clk 0:00:25.6]}
45. Ra8 {[%clk 0:00:03.7]} 45... Rh5+ {[%clk 0:00:21]} 46. Ke4 {[%clk
0:00:04.3]} 46... Bg3 {[%clk 0:00:18.6]} 47. Ra7+ {[%clk 0:00:04.6]} 47... Kg6
{[%clk 0:00:16.4]} 48. Rg7# {[%clk 0:00:04.7]} 1-0

[Event "Early-Titled-Tuesday-Blitz-January-30-2024"]
[Site "Chess.com"]
[Date "2024.01.30"]
[Round "9"]
[White "Noki102"]
[Black "mac0504"]
[Result "1-0"]
[WhiteElo "2528"]
[BlackElo "2728"]
[TimeControl "180+1"]
[EndTime "9:49:05 PST"]
[Termination "Noki102 won on time"]

1. d4 {[%clk 0:02:54.4]} 1... Nf6 {[%clk 0:02:59.8]} 2. Nf3 {[%clk 0:02:55.2]}
2... b6 {[%clk 0:03:00.1]} 3. g3 {[%clk 0:02:54.7]} 3... Bb7 {[%clk 0:03:00.7]}
4. Bg2 {[%clk 0:02:55.6]} 4... g6 {[%clk 0:03:00.8]} 5. O-O {[%clk 0:02:56]}
5... Bg7 {[%clk 0:03:01.5]} 6. c4 {[%clk 0:02:56.3]} 6... O-O {[%clk 0:03:02]}
7. Nc3 {[%clk 0:02:56]} 7... e6 {[%clk 0:03:01.4]} 8. Qd3 {[%clk 0:02:55]} 8...
d6 {[%clk 0:02:58.4]} 9. h3 {[%clk 0:02:53.4]} 9... Nbd7 {[%clk 0:02:55.3]} 10.
Rd1 {[%clk 0:02:52.8]} 10... Qe7 {[%clk 0:02:46]} 11. b3 {[%clk 0:02:51.6]}
11... Rad8 {[%clk 0:02:37.6]} 12. Nb5 {[%clk 0:02:44.1]} 12... a6 {[%clk
0:02:20.7]} 13. Nc3 {[%clk 0:02:25.2]} 13... e5 {[%clk 0:02:16.6]} 14. e4 {[%clk
0:02:16.5]} 14... exd4 {[%clk 0:02:10.1]} 15. Nxd4 {[%clk 0:02:16.5]} 15... Nc5
{[%clk 0:02:10.2]} 16. Qe3 {[%clk 0:02:04.9]} 16... Rfe8 {[%clk 0:01:45]} 17. f3
{[%clk 0:01:59.7]} 17... a5 {[%clk 0:00:49.1]} 18. Qf2 {[%clk 0:01:59.2]} 18...
h5 {[%clk 0:00:46.7]} 19. Bg5 {[%clk 0:01:57.5]} 19... c6 {[%clk 0:00:45.9]} 20.
Rab1 {[%clk 0:01:52.8]} 20... Qc7 {[%clk 0:00:46.5]} 21. a3 {[%clk 0:01:51.1]}
21... Rd7 {[%clk 0:00:40.2]} 22. b4 {[%clk 0:01:48.2]} 22... axb4 {[%clk
0:00:39.9]} 23. axb4 {[%clk 0:01:49.1]} 23... Ne6 {[%clk 0:00:27]} 24. Nxe6
{[%clk 0:01:37.7]} 24... Rxe6 {[%clk 0:00:27.9]} 25. Be3 {[%clk 0:01:33.5]}
25... c5 {[%clk 0:00:27.2]} 26. Nd5 {[%clk 0:01:27.2]} 26... Bxd5 {[%clk
0:00:25.7]} 27. cxd5 {[%clk 0:01:24.2]} 27... Re8 {[%clk 0:00:26]} 28. Bf1
{[%clk 0:01:17.1]} 28... Ra8 {[%clk 0:00:25.9]} 29. Bb5 {[%clk 0:01:15.6]} 29...
Rdd8 {[%clk 0:00:26.4]} 30. Bc6 {[%clk 0:01:15.9]} 30... Ra3 {[%clk 0:00:25.8]}
31. bxc5 {[%clk 0:01:08.6]} 31... bxc5 {[%clk 0:00:25.9]} 32. Rb7 {[%clk
0:01:06.5]} 32... Qa5 {[%clk 0:00:25.8]} 33. e5 {[%clk 0:00:53.2]} 33... dxe5
{[%clk 0:00:24.1]} 34. Bxc5 {[%clk 0:00:53.3]} 34... Ra2 {[%clk 0:00:23.5]} 35.
Qe3 {[%clk 0:00:47.1]} 35... Bh6 {[%clk 0:00:16.2]} 36. f4 {[%clk 0:00:29.4]}
36... exf4 {[%clk 0:00:17.1]} 37. gxf4 {[%clk 0:00:24.1]} 37... Bxf4 {[%clk
0:00:17]} 38. Qd4 {[%clk 0:00:18.2]} 38... Be5 {[%clk 0:00:16.5]} 39. Qe3 {[%clk
0:00:12.1]} 39... Rc2 {[%clk 0:00:05]} 40. Bb6 {[%clk 0:00:10.8]} 40... Qa2
{[%clk 0:00:02.3]} 41. Qxe5 {[%clk 0:00:11.1]} 41... Rg2+ {[%clk 0:00:02]} 42.
Kh1 {[%clk 0:00:11.1]} 42... Qc2 {[%clk 0:00:01.1]} 43. Rf1 {[%clk 0:00:10.4]}
1-0

[Event "Early-Titled-Tuesday-Blitz-January-30-2024"]
[Site "Chess.com"]
[Date "2024.01.30"]
[Round "9"]
[White "guillembaches"]
[Black "manitodeplomo"]
[Result "0-1"]
[WhiteElo "2545"]
[BlackElo "2683"]
[TimeControl "180+1"]
[EndTime "9:49:06 PST"]
[Termination "manitodeplomo won on time"]

1. d4 {[%clk 0:03:00.9]} 1... g6 {[%clk 0:02:56.8]} 2. Nf3 {[%clk 0:03:01.3]}
2... Bg7 {[%clk 0:02:57.1]} 3. c3 {[%clk 0:02:59.6]} 3... Nf6 {[%clk 0:02:55.2]}
4. Bg5 {[%clk 0:02:59]} 4... h6 {[%clk 0:02:53.4]} 5. Bh4 {[%clk 0:02:58.7]}
5... O-O {[%clk 0:02:53.8]} 6. Nbd2 {[%clk 0:02:58.6]} 6... d6 {[%clk
0:02:53.8]} 7. e4 {[%clk 0:02:58.5]} 7... c5 {[%clk 0:02:52.7]} 8. dxc5 {[%clk
0:02:43.6]} 8... dxc5 {[%clk 0:02:53.6]} 9. Bc4 {[%clk 0:02:40.5]} 9... Nc6
{[%clk 0:02:52.9]} 10. Qe2 {[%clk 0:02:33]} 10... Nh5 {[%clk 0:02:43.3]} 11. Bg3
{[%clk 0:02:28.8]} 11... Nxg3 {[%clk 0:02:37.1]} 12. hxg3 {[%clk 0:02:28.8]}
12... Qc7 {[%clk 0:02:38]} 13. Qe3 {[%clk 0:02:19.2]} 13... Ne5 {[%clk
0:02:16.8]} 14. Nxe5 {[%clk 0:02:00.8]} 14... Qxe5 {[%clk 0:02:17.7]} 15. Nf3
{[%clk 0:02:00.9]} 15... Qd6 {[%clk 0:01:34.1]} 16. Rxh6 {[%clk 0:01:48.8]}
16... Bxh6 {[%clk 0:01:31.3]} 17. Qxh6 {[%clk 0:01:48.4]} 17... Qf6 {[%clk
0:01:31.4]} 18. O-O-O {[%clk 0:01:34.5]} 18... Bg4 {[%clk 0:01:20.8]} 19. Rh1
{[%clk 0:01:13.1]} 19... Rfd8 {[%clk 0:00:43.9]} 20. Qh7+ {[%clk 0:00:30.8]}
20... Kf8 {[%clk 0:00:42.4]} 21. Ne5 {[%clk 0:00:24.4]} 21... e6 {[%clk
0:00:11.7]} 22. f4 {[%clk 0:00:15.9]} 22... Bh5 {[%clk 0:00:07.8]} 23. Bb5
{[%clk 0:00:05]} 23... Ke7 {[%clk 0:00:06.8]} 24. Nd3 {[%clk 0:00:04.2]} 24...
Rh8 {[%clk 0:00:05.8]} 25. e5 {[%clk 0:00:04.8]} 25... Qf5 {[%clk 0:00:05.7]}
26. Qg7 {[%clk 0:00:05.2]} 26... Be2 {[%clk 0:00:03.3]} 27. Qf6+ {[%clk
0:00:05.5]} 27... Qxf6 {[%clk 0:00:02.6]} 28. exf6+ {[%clk 0:00:05.7]} 28...
Kxf6 {[%clk 0:00:03.5]} 29. Re1 {[%clk 0:00:05.9]} 29... Bxd3 {[%clk 0:00:02.6]}
30. Bxd3 {[%clk 0:00:06.6]} 30... Rad8 {[%clk 0:00:03.1]} 31. Be4 {[%clk
0:00:07.3]} 31... Rd7 {[%clk 0:00:03.2]} 32. Kc2 {[%clk 0:00:07.9]} 32... Rhd8
{[%clk 0:00:03.5]} 33. a4 {[%clk 0:00:08.5]} 33... b6 {[%clk 0:00:04]} 34. Kb3
{[%clk 0:00:09]} 34... Rd2 {[%clk 0:00:04.4]} 35. Re3 {[%clk 0:00:09.6]} 35...
Rf2 {[%clk 0:00:04.5]} 36. Bc6 {[%clk 0:00:10.4]} 36... Rdd2 {[%clk 0:00:04.7]}
37. a5 {[%clk 0:00:10.9]} 37... Rfe2 {[%clk 0:00:05.1]} 38. Kc4 {[%clk
0:00:11.5]} 38... Rxe3 {[%clk 0:00:04.5]} 0-1

[Event "Early-Titled-Tuesday-Blitz-January-30-2024"]
[Site "Chess.com"]
[Date "2024.01.30"]
[Round "9"]
[White "Roman_Ovetchkin"]
[Black "DenLaz"]
[Result "1/2-1/2"]
[WhiteElo "2667"]
[BlackElo "3035"]
[TimeControl "180+1"]
[EndTime "9:49:08 PST"]
[Termination "Game drawn by repetition"]

1. d4 {[%clk 0:03:00.9]} 1... Nf6 {[%clk 0:03:00.5]} 2. c4 {[%clk 0:02:59.8]}
2... e6 {[%clk 0:03:01.1]} 3. g3 {[%clk 0:02:59.5]} 3... d5 {[%clk 0:03:00.8]}
4. Bg2 {[%clk 0:02:59.2]} 4... Bb4+ {[%clk 0:03:01.5]} 5. Bd2 {[%clk 0:02:58.7]}
5... Be7 {[%clk 0:03:01.9]} 6. Nf3 {[%clk 0:02:58.1]} 6... O-O {[%clk
0:03:02.6]} 7. O-O {[%clk 0:02:57.6]} 7... c6 {[%clk 0:03:03.3]} 8. Qc2 {[%clk
0:02:56.8]} 8... Nbd7 {[%clk 0:03:03.8]} 9. Bf4 {[%clk 0:02:54]} 9... h6 {[%clk
0:03:04]} 10. Re1 {[%clk 0:02:32.5]} 10... a5 {[%clk 0:02:58]} 11. Nbd2 {[%clk
0:02:20.2]} 11... Nh5 {[%clk 0:02:56.8]} 12. Be5 {[%clk 0:02:17]} 12... g5
{[%clk 0:02:44.8]} 13. h3 {[%clk 0:02:05.4]} 13... f6 {[%clk 0:02:30.8]} 14.
cxd5 {[%clk 0:01:47.4]} 14... exd5 {[%clk 0:02:24.9]} 15. Qg6+ {[%clk 0:01:27]}
15... Ng7 {[%clk 0:02:23.7]} 16. Qxh6 {[%clk 0:01:27.3]} 16... fxe5 {[%clk
0:02:20.6]} 17. dxe5 {[%clk 0:01:27.6]} 17... Nc5 {[%clk 0:02:17.4]} 18. e4
{[%clk 0:01:19.8]} 18... dxe4 {[%clk 0:02:07.3]} 19. Nxe4 {[%clk 0:01:17.2]}
19... Nxe4 {[%clk 0:02:07.9]} 20. Rxe4 {[%clk 0:01:16.8]} 20... Bf5 {[%clk
0:02:07.5]} 21. Rd4 {[%clk 0:01:01.5]} 21... Qb6 {[%clk 0:02:01.9]} 22. Rad1
{[%clk 0:00:50.4]} 22... Rad8 {[%clk 0:02:00.8]} 23. g4 {[%clk 0:00:35.2]} 23...
Bh7 {[%clk 0:01:50.2]} 24. R4d2 {[%clk 0:00:24]} 24... Rxd2 {[%clk 0:01:27.7]}
25. Rxd2 {[%clk 0:00:23.1]} 25... Rd8 {[%clk 0:00:59.5]} 26. Nxg5 {[%clk
0:00:21.6]} 26... Bxg5 {[%clk 0:00:55.4]} 27. Qxg5 {[%clk 0:00:21.8]} 27... Rxd2
{[%clk 0:00:55.9]} 28. Qxd2 {[%clk 0:00:21.3]} 28... Bg6 {[%clk 0:00:55.3]} 29.
Kh2 {[%clk 0:00:19.6]} 29... Ne6 {[%clk 0:00:36.6]} 30. f4 {[%clk 0:00:19.4]}
30... Qc5 {[%clk 0:00:35.8]} 31. Kg3 {[%clk 0:00:14]} 31... Nd4 {[%clk
0:00:36.2]} 32. h4 {[%clk 0:00:11.2]} 32... Bf7 {[%clk 0:00:34.3]} 33. b3 {[%clk
0:00:10.2]} 33... Bd5 {[%clk 0:00:30.3]} 34. Bxd5+ {[%clk 0:00:09.6]} 34... Qxd5
{[%clk 0:00:31.2]} 35. Qd3 {[%clk 0:00:10.2]} 35... c5 {[%clk 0:00:14.8]} 36. h5
{[%clk 0:00:10.3]} 36... Qh1 {[%clk 0:00:07.3]} 37. Qg6+ {[%clk 0:00:09.3]}
37... Kf8 {[%clk 0:00:07.7]} 38. Qd6+ {[%clk 0:00:08.8]} 38... Kf7 {[%clk
0:00:07.2]} 39. Qd7+ {[%clk 0:00:07.4]} 39... Kf8 {[%clk 0:00:07.5]} 40. Qd6+
{[%clk 0:00:07]} 40... Ke8 {[%clk 0:00:06.2]} 41. Qb8+ {[%clk 0:00:06.6]} 41...
Kd7 {[%clk 0:00:06.4]} 42. Qd6+ {[%clk 0:00:06.6]} 42... Ke8 {[%clk 0:00:07]}
43. Qb8+ {[%clk 0:00:06.5]} 43... Kd7 {[%clk 0:00:06.9]} 44. Qd6+ {[%clk
0:00:06.7]} 44... Ke8 {[%clk 0:00:07.5]} 1/2-1/2

[Event "Early-Titled-Tuesday-Blitz-January-30-2024"]
[Site "Chess.com"]
[Date "2024.01.30"]
[Round "9"]
[White "FairChess_on_YouTube"]
[Black "rasmussvane"]
[Result "1-0"]
[WhiteElo "3097"]
[BlackElo "2972"]
[TimeControl "180+1"]
[EndTime "9:49:11 PST"]
[Termination "FairChess_on_YouTube won on time"]

1. Nf3 {[%clk 0:03:00.9]} 1... d5 {[%clk 0:02:57.9]} 2. d4 {[%clk 0:03:00.5]}
2... Nf6 {[%clk 0:02:56.3]} 3. c4 {[%clk 0:03:00.7]} 3... e6 {[%clk 0:02:54.7]}
4. Bg5 {[%clk 0:03:00.7]} 4... dxc4 {[%clk 0:02:52.4]} 5. e4 {[%clk 0:03:00.4]}
5... c5 {[%clk 0:02:47.8]} 6. Nc3 {[%clk 0:03:00]} 6... cxd4 {[%clk 0:02:24]} 7.
Qxd4 {[%clk 0:03:00.9]} 7... Qxd4 {[%clk 0:02:16.4]} 8. Nxd4 {[%clk 0:03:01.8]}
8... a6 {[%clk 0:02:16.5]} 9. Bxc4 {[%clk 0:03:01.1]} 9... Bc5 {[%clk 0:02:16]}
10. Nb3 {[%clk 0:02:53.8]} 10... Bb4 {[%clk 0:02:14.2]} 11. f3 {[%clk 0:02:54]}
11... Nc6 {[%clk 0:01:54.2]} 12. Rc1 {[%clk 0:02:47.3]} 12... Bd7 {[%clk
0:01:53.5]} 13. a3 {[%clk 0:02:31.3]} 13... Na5 {[%clk 0:01:45.3]} 14. Nxa5
{[%clk 0:01:55.8]} 14... Bxa5 {[%clk 0:01:44.5]} 15. Kf2 {[%clk 0:01:38.7]}
15... Bc6 {[%clk 0:01:43.6]} 16. Rhd1 {[%clk 0:01:37]} 16... O-O {[%clk
0:01:39]} 17. Be3 {[%clk 0:01:34.4]} 17... Rfd8 {[%clk 0:01:35]} 18. b4 {[%clk
0:01:16.5]} 18... Bc7 {[%clk 0:01:32]} 19. a4 {[%clk 0:01:17.1]} 19... Be5
{[%clk 0:00:56.8]} 20. Rxd8+ {[%clk 0:01:13.4]} 20... Rxd8 {[%clk 0:00:56.8]}
21. b5 {[%clk 0:01:12]} 21... axb5 {[%clk 0:00:57.3]} 22. axb5 {[%clk
0:01:12.9]} 22... Be8 {[%clk 0:00:47.1]} 23. Be2 {[%clk 0:01:08]} 23... Rc8
{[%clk 0:00:37.4]} 24. Na4 {[%clk 0:00:49.3]} 24... Rxc1 {[%clk 0:00:36.5]} 25.
Bxc1 {[%clk 0:00:50.2]} 25... Bd6 {[%clk 0:00:31.5]} 26. Be3 {[%clk 0:00:46.4]}
26... Bd7 {[%clk 0:00:28.3]} 27. h4 {[%clk 0:00:33.1]} 27... Kf8 {[%clk
0:00:28.3]} 28. Nc5 {[%clk 0:00:30.6]} 28... Bc8 {[%clk 0:00:27.2]} 29. g4
{[%clk 0:00:30.5]} 29... Nd7 {[%clk 0:00:27]} 30. Na4 {[%clk 0:00:29.6]} 30...
f6 {[%clk 0:00:23.4]} 31. f4 {[%clk 0:00:27.7]} 31... Ke7 {[%clk 0:00:18.8]} 32.
g5 {[%clk 0:00:27.4]} 32... Nf8 {[%clk 0:00:14.5]} 33. Nb6 {[%clk 0:00:16.8]}
33... Bd7 {[%clk 0:00:12.6]} 34. h5 {[%clk 0:00:16]} 34... fxg5 {[%clk
0:00:08.8]} 35. fxg5 {[%clk 0:00:16.9]} 35... Be8 {[%clk 0:00:07.3]} 36. Nc8+
{[%clk 0:00:16.5]} 36... Kd7 {[%clk 0:00:07.7]} 37. Nxd6 {[%clk 0:00:15.9]}
37... Kxd6 {[%clk 0:00:08.6]} 38. Bc1 {[%clk 0:00:11.1]} 38... Nd7 {[%clk
0:00:07.2]} 39. Ke3 {[%clk 0:00:09.6]} 39... e5 {[%clk 0:00:07.2]} 40. Ba3+
{[%clk 0:00:08.1]} 40... Nc5 {[%clk 0:00:07.7]} 41. h6 {[%clk 0:00:08.2]} 41...
gxh6 {[%clk 0:00:07.5]} 42. gxh6 {[%clk 0:00:09.1]} 42... Bg6 {[%clk 0:00:07]}
43. Bg4 {[%clk 0:00:07.2]} 43... b6 {[%clk 0:00:06.7]} 44. Bf5 {[%clk
0:00:06.7]} 1-0

[Event "Early-Titled-Tuesday-Blitz-January-30-2024"]
[Site "Chess.com"]
[Date "2024.01.30"]
[Round "9"]
[White "emeli_chess"]
[Black "Al_Shima"]
[Result "0-1"]
[WhiteElo "2463"]
[BlackElo "2363"]
[TimeControl "180+1"]
[EndTime "9:49:12 PST"]
[Termination "Al_Shima won by resignation"]

1. d4 {[%clk 0:03:00.9]} 1... Nf6 {[%clk 0:02:59.6]} 2. c4 {[%clk 0:03:01.1]}
2... e6 {[%clk 0:02:57]} 3. Nc3 {[%clk 0:03:01.3]} 3... d5 {[%clk 0:02:57.5]} 4.
cxd5 {[%clk 0:03:01.1]} 4... Nxd5 {[%clk 0:02:57.2]} 5. e4 {[%clk 0:03:00.9]}
5... Nxc3 {[%clk 0:02:57.7]} 6. bxc3 {[%clk 0:03:01.6]} 6... c5 {[%clk
0:02:58.6]} 7. Nf3 {[%clk 0:03:01.3]} 7... cxd4 {[%clk 0:02:59]} 8. cxd4 {[%clk
0:03:01.7]} 8... Bb4+ {[%clk 0:02:59.7]} 9. Bd2 {[%clk 0:03:02.2]} 9... Bxd2+
{[%clk 0:03:00.4]} 10. Qxd2 {[%clk 0:03:02.7]} 10... O-O {[%clk 0:03:01.3]} 11.
Bd3 {[%clk 0:03:02.6]} 11... Nc6 {[%clk 0:03:01.8]} 12. Bc2 {[%clk 0:03:02.9]}
12... b6 {[%clk 0:03:02.4]} 13. O-O {[%clk 0:03:02.2]} 13... Bb7 {[%clk
0:03:03]} 14. Rfe1 {[%clk 0:03:01.7]} 14... Rc8 {[%clk 0:03:03.3]} 15. Rad1
{[%clk 0:03:01.3]} 15... Na5 {[%clk 0:02:52.9]} 16. Bb1 {[%clk 0:02:54.4]} 16...
Nc4 {[%clk 0:02:49.6]} 17. Qf4 {[%clk 0:02:49.9]} 17... Qd7 {[%clk 0:02:06.1]}
18. e5 {[%clk 0:02:29]} 18... Bxf3 {[%clk 0:01:53.5]} 19. Qxf3 {[%clk
0:02:28.2]} 19... Rfd8 {[%clk 0:01:54]} 20. Re4 {[%clk 0:02:04]} 20... g6 {[%clk
0:01:44.3]} 21. h4 {[%clk 0:01:54.9]} 21... h5 {[%clk 0:00:39.3]} 22. g4 {[%clk
0:01:52.8]} 22... hxg4 {[%clk 0:00:38.3]} 23. Qxg4 {[%clk 0:01:52.8]} 23... Rc5
{[%clk 0:00:23]} 24. h5 {[%clk 0:01:27.2]} 24... Nxe5 {[%clk 0:00:10.7]} 25.
Rxe5 {[%clk 0:01:25.8]} 25... Rxe5 {[%clk 0:00:09.7]} 26. hxg6 {[%clk
0:01:26.2]} 26... f5 {[%clk 0:00:06.9]} 27. Qh4 {[%clk 0:01:07.6]} 27... Rd5
{[%clk 0:00:06.4]} 28. Rd3 {[%clk 0:00:59.9]} 28... Re8 {[%clk 0:00:03.9]} 29.
a3 {[%clk 0:00:44.2]} 29... Qg7 {[%clk 0:00:03.3]} 30. Ba2 {[%clk 0:00:43.7]}
30... Rd6 {[%clk 0:00:03.2]} 31. Rh3 {[%clk 0:00:33.1]} 31... Rxd4 {[%clk
0:00:03.4]} 32. Qh5 {[%clk 0:00:14.4]} 32... Rg4+ {[%clk 0:00:03.4]} 33. Rg3
{[%clk 0:00:14.5]} 33... Rxg3+ {[%clk 0:00:03.4]} 34. fxg3 {[%clk 0:00:14.9]}
34... Qa1+ {[%clk 0:00:03.1]} 35. Kg2 {[%clk 0:00:13.7]} 35... Qxa2+ {[%clk
0:00:03.5]} 36. Kh3 {[%clk 0:00:14.1]} 36... Re7 {[%clk 0:00:01.4]} 37. Qg5
{[%clk 0:00:11.3]} 37... Qxa3 {[%clk 0:00:01.9]} 38. Qf6 {[%clk 0:00:09.3]}
38... Qd6 {[%clk 0:00:02.3]} 39. Qh4 {[%clk 0:00:08.3]} 39... Qd7 {[%clk
0:00:02.3]} 40. Qf6 {[%clk 0:00:08.1]} 40... Rg7 {[%clk 0:00:02.3]} 41. Kh4
{[%clk 0:00:07.4]} 41... Qe7 {[%clk 0:00:02.5]} 42. Kg5 {[%clk 0:00:08]} 42...
Qxf6+ {[%clk 0:00:02.7]} 43. Kxf6 {[%clk 0:00:08.9]} 43... a5 {[%clk 0:00:03.3]}
44. Kxe6 {[%clk 0:00:09.2]} 44... a4 {[%clk 0:00:04.2]} 45. Kxf5 {[%clk
0:00:09.8]} 45... a3 {[%clk 0:00:05.1]} 0-1

[Event "Early-Titled-Tuesday-Blitz-January-30-2024"]
[Site "Chess.com"]
[Date "2024.01.30"]
[Round "9"]
[White "C_K_G"]
[Black "WiktoriaPOL"]
[Result "0-1"]
[WhiteElo "2158"]
[BlackElo "2272"]
[TimeControl "180+1"]
[EndTime "9:49:13 PST"]
[Termination "WiktoriaPOL won by resignation"]

1. e4 {[%clk 0:03:00.9]} 1... c5 {[%clk 0:02:58.6]} 2. Nf3 {[%clk 0:03:01]} 2...
d6 {[%clk 0:02:58.5]} 3. d4 {[%clk 0:03:00]} 3... cxd4 {[%clk 0:02:59.4]} 4.
Nxd4 {[%clk 0:03:00.2]} 4... Nf6 {[%clk 0:02:59.9]} 5. Nc3 {[%clk 0:03:00.4]}
5... a6 {[%clk 0:03:00.4]} 6. Be2 {[%clk 0:03:00.4]} 6... e5 {[%clk 0:02:59.9]}
7. Nb3 {[%clk 0:03:00.5]} 7... Be7 {[%clk 0:02:59]} 8. Be3 {[%clk 0:03:01.1]}
8... Be6 {[%clk 0:02:57.5]} 9. O-O {[%clk 0:03:01.6]} 9... O-O {[%clk
0:02:56.7]} 10. f4 {[%clk 0:03:02]} 10... exf4 {[%clk 0:02:52.5]} 11. Rxf4
{[%clk 0:02:59.9]} 11... Nc6 {[%clk 0:02:51.5]} 12. Nd5 {[%clk 0:02:54.7]} 12...
Bxd5 {[%clk 0:02:40.4]} 13. exd5 {[%clk 0:02:54.1]} 13... Ne5 {[%clk 0:02:41.1]}
14. c4 {[%clk 0:02:39.4]} 14... Rc8 {[%clk 0:02:32.5]} 15. Rc1 {[%clk
0:02:36.4]} 15... Re8 {[%clk 0:02:21.8]} 16. Nd4 {[%clk 0:02:23.1]} 16... Bf8
{[%clk 0:02:07.9]} 17. Qd2 {[%clk 0:02:01.8]} 17... g6 {[%clk 0:01:51.6]} 18.
Rcf1 {[%clk 0:01:51.1]} 18... Bg7 {[%clk 0:01:45.4]} 19. b3 {[%clk 0:01:50.1]}
19... Nfd7 {[%clk 0:01:34]} 20. R4f2 {[%clk 0:01:39.4]} 20... Nc5 {[%clk
0:01:30.5]} 21. Bf3 {[%clk 0:01:35.7]} 21... Qh4 {[%clk 0:01:00.9]} 22. Bg5
{[%clk 0:01:27.1]} 22... Qxd4 {[%clk 0:00:57.9]} 23. Qc1 {[%clk 0:01:09.6]}
23... Ned3 {[%clk 0:00:52.8]} 24. Qc2 {[%clk 0:00:52.9]} 24... Nxf2 {[%clk
0:00:49.7]} 25. Qxf2 {[%clk 0:00:53.8]} 25... Qxf2+ {[%clk 0:00:48.9]} 26. Kxf2
{[%clk 0:00:53.5]} 26... Bd4+ {[%clk 0:00:47.3]} 27. Kg3 {[%clk 0:00:53.7]}
27... Nd3 {[%clk 0:00:40.1]} 28. Rd1 {[%clk 0:00:49.2]} 28... Be5+ {[%clk
0:00:39.4]} 29. Kh4 {[%clk 0:00:43.6]} 29... Nf4 {[%clk 0:00:37.5]} 30. g3
{[%clk 0:00:32.4]} 30... Nh5 {[%clk 0:00:29.5]} 31. Bg4 {[%clk 0:00:20.5]} 31...
Rc7 {[%clk 0:00:24.7]} 32. Bxh5 {[%clk 0:00:19.7]} 32... gxh5 {[%clk 0:00:24.5]}
33. Kxh5 {[%clk 0:00:20.6]} 33... f6 {[%clk 0:00:24.8]} 34. Bh6 {[%clk
0:00:20.2]} 34... Kf7 {[%clk 0:00:23.1]} 35. Rf1 {[%clk 0:00:19.4]} 35... Rg8
{[%clk 0:00:22.8]} 36. g4 {[%clk 0:00:18.5]} 36... Ke8 {[%clk 0:00:19]} 37. h4
{[%clk 0:00:18.2]} 37... Rf7 {[%clk 0:00:18]} 38. Rf5 {[%clk 0:00:17]} 38... Kd7
{[%clk 0:00:14]} 39. b4 {[%clk 0:00:16.6]} 39... Ke7 {[%clk 0:00:10.5]} 40. a4
{[%clk 0:00:17]} 40... Rc8 {[%clk 0:00:10.1]} 41. c5 {[%clk 0:00:16.8]} 41...
dxc5 {[%clk 0:00:10.4]} 42. bxc5 {[%clk 0:00:17.7]} 42... Rxc5 {[%clk
0:00:10.4]} 43. g5 {[%clk 0:00:17.4]} 43... Rxd5 {[%clk 0:00:10.7]} 44. gxf6+
{[%clk 0:00:17.9]} 44... Rxf6 {[%clk 0:00:11.2]} 45. Bg5 {[%clk 0:00:17.7]}
45... Ke6 {[%clk 0:00:09.2]} 46. Rf1 {[%clk 0:00:14.9]} 46... Rxf1 {[%clk
0:00:08.5]} 47. Kh6 {[%clk 0:00:14.6]} 47... Bf4 {[%clk 0:00:08.1]} 48. Kxh7
{[%clk 0:00:15.5]} 48... Bxg5 {[%clk 0:00:08]} 49. hxg5 {[%clk 0:00:16.2]} 49...
Rxg5 {[%clk 0:00:08.5]} 0-1